lending/lending_fUSD_20240206
["ID","MTS","AMOUNT","RATE_DAILY","PERIOD"]
[313369658,1707237056816,-500.0,0.00050547,60]
[313369659,1707237056825,-500.0,0.00050547,60]
[313369660,1707237056835,-500.0,0.00050547,60]
[313369661,1707237056844,-500.0,0.00050547,60]
[313369662,1707237056854,-500.0,0.00050547,60]
[313369663,1707237056864,-583.95696655,0.00050547,60]
[313369664,1707237056945,-500.0,0.00050547,60]
[313369665,1707237056955,-500.0,0.00050547,60]
[313369666,1707237056965,-500.0,0.00050547,60]
[313369667,1707237056975,-500.0,0.00050547,60]
[313369668,1707237056986,-154.49864719,0.00050547,60]
[313369669,1707237056996,-500.0,0.00050547,60]
[313369670,1707237057006,-500.0,0.00050547,60]
[313369671,1707237057016,-500.0,0.00050547,60]
[313369672,1707237057027,-500.0,0.00050547,60]
[313369673,1707237057037,-500.0,0.00050547,60]
[313369674,1707237057047,-500.0,0.00050547,60]
[313369675,1707237057057,-1387.81,0.00050547,5]
[313369676,1707237057066,-500.0,0.00050547,60]
[313369677,1707237057077,-500.0,0.00050547,60]
[313369678,1707237057087,-496.26644337,0.00050547,60]
[313369679,1707237057097,-500.0,0.00050547,60]
[313369680,1707237057106,-500.0,0.00050547,60]
[313369681,1707237057117,-500.0,0.00050547,60]
[313369682,1707237057126,-558.81,0.00050547,60]
[313369683,1707237057135,-500.0,0.00050547,60]
[313369684,1707237057144,-500.0,0.00050547,60]
[313369685,1707237057155,-1000.0,0.00050547,7]
[313369686,1707237057165,-530.43,0.00050547,60]
[313369687,1707237057175,-500.0,0.00050547,60]
[313369688,1707237057185,-500.0,0.00050547,2]
[313369689,1707237057195,-500.0,0.00050547,60]
[313369690,1707237057204,-500.0,0.00050547,60]
[313369691,1707237057214,-500.0,0.00050547,60]
[313369692,1707237057223,-742.12,0.00050547,60]
[313369693,1707237057235,-500.0,0.00050547,60]
[313369694,1707237057245,-500.0,0.00050547,60]
[313369695,1707237057254,-500.0,0.00050547,60]
[313369696,1707237057264,-500.0,0.00050547,60]
[313369697,1707237057274,-500.0,0.00050547,60]
[313369698,1707237057284,-500.0,0.00050547,60]
[313369699,1707237057294,-1000.0,0.00050547,7]
[313369700,1707237057303,-500.0,0.00050547,60]
[313369701,1707237057312,-500.0,0.00050547,120]
[313369702,1707237057322,-500.0,0.00050547,2]
[313369703,1707237057331,-500.0,0.00050547,60]
[313369704,1707237057341,-248.12327757,0.00050627,60]
[313369705,1707237057350,-150.5,0.0005067,120]
[313369706,1707237057360,-248.12327757,0.00050675,60]
[313369707,1707237057369,-4162.53379,0.00050678,30]
[313369708,1707237057378,-150.5,0.0005068,120]
[313369709,1707237057387,-500.0,0.00050684,3]
[313369710,1707237057397,-600.0,0.00050684,2]
[313369711,1707237057407,-600.0,0.00050684,60]
[313369712,1707237057416,-600.0,0.00050684,60]
[313369713,1707237057425,-600.0,0.00050684,60]
[313369714,1707237057434,-176.8,0.0005069,120]
[313369715,1707237057444,-150.5,0.0005069,120]
[313369716,1707237057453,-500000.0,0.000507,120]
[313369717,1707237057462,-666.0,0.000507,60]
[313369718,1707237057471,-500.0,0.00050731,14]
[313369719,1707237057481,-248.12327757,0.00050759,60]
[313369720,1707237057491,-154.81059268,0.00050774,60]
[313369721,1707237057500,-3725.0,0.00050775,30]
[313369722,1707237057509,-205.0,0.00050784,36]
[313369723,1707237057519,-150.0,0.00050799,10]
[313369724,1707237057528,-150.0,0.00050799,10]
[313369725,1707237057537,-500000.0,0.000508,120]
[313369726,1707237057547,-248.12327757,0.00050861,60]
[313369727,1707237057556,-1621.493779,0.000509,30]
[313369728,1707237057565,-300.0,0.000509,18]
[313369729,1707237057575,-1000.0,0.000509,30]
[313369730,1707237057584,-5000.0,0.000509,8]
[313369731,1707237057593,-168.80661386,0.000509,12]
[313369732,1707237057603,-191.25630105,0.00050953,20]
[313369733,1707237057612,-170.799197,0.00050956,30]
[313369734,1707237057621,-151.55628475,0.00050957,60]
[313369735,1707237057630,-155.0,0.00050958,2]
[313369736,1707237057639,-33908.25457791,0.00050958,4]
[313369737,1707237057649,-253.4340856,0.00050958,120]
[313369738,1707237057657,-300.0,0.00050958,60]
[313369739,1707237057667,-502.07087883,0.00050958,2]
[313369740,1707237057675,-500.0,0.00050958,60]
[313369741,1707237057686,-500.0,0.00050958,60]
[313369742,1707237057696,-744.23,0.00050958,30]
[313369743,1707237057706,-500.0,0.00050958,2]
[313369744,1707237057717,-535.41050345,0.00050958,60]
[313369745,1707237057726,-500.0,0.00050958,7]
[313369746,1707237057738,-500.0,0.00050958,60]
[313369747,1707237057747,-500.0,0.00050958,60]
[313369748,1707237057756,-500.0,0.00050958,60]
[313369749,1707237057766,-490.88437239,0.00050958,30]
[313369750,1707237057775,-500.0,0.00050958,60]
[313369751,1707237057785,-500.0,0.00050958,60]
[313369752,1707237057796,-500.0,0.00050958,60]
[313369753,1707237057805,-500.0,0.00050958,60]
[313369754,1707237057815,-500.0,0.00050958,60]
[313369755,1707237057824,-500.0,0.00050958,60]
[313369756,1707237057833,-500.0,0.00050958,2]
[313369757,1707237057842,-500.0,0.00050958,60]
[313369758,1707237057852,-581.69730429,0.00050958,60]
[313369759,1707237057861,-500.0,0.00050958,60]
[313369760,1707237057870,-886.51,0.00050958,60]
[313369761,1707237057879,-202.586714,0.00050958,14]
[313369762,1707237057888,-500.0,0.00050958,60]
[313369763,1707237057897,-500.0,0.00050958,60]
[313369764,1707237057906,-500.0,0.00050958,60]
[313369765,1707237057915,-151.0,0.00050958,14]
[313369766,1707237057924,-591.25,0.00050958,7]
[313369767,1707237057934,-500.0,0.00050958,2]
[313369768,1707237057943,-610.62637048,0.00050958,10]
[313369769,1707237057952,-500.0,0.00050958,60]
[313369770,1707237057962,-5000.0,0.00050958,45]
[313369771,1707237057971,-500.0,0.00050958,60]
[313369772,1707237057981,-500.0,0.00050958,60]
[313369773,1707237057990,-500.0,0.00050958,60]
[313369774,1707237058000,-359.63521351,0.00050958,60]
[313369775,1707237058010,-500.0,0.00050958,60]
[313369776,1707237058019,-555.94951665,0.00050958,60]
[313369777,1707237058028,-652.55013597,0.00050958,7]
[313369778,1707237058038,-523.35401662,0.00050958,60]
[313369779,1707237058048,-500.0,0.00050958,60]
[313369780,1707237058057,-500.0,0.00050958,60]
[313369781,1707237058067,-1138.31,0.00050958,60]
[313369782,1707237058076,-500.0,0.00050958,60]
[313369783,1707237058085,-500.0,0.00050958,60]
[313369784,1707237058094,-500.0,0.00050958,60]
[313369785,1707237058104,-159.19594,0.00050958,14]
[313369786,1707237058113,-159.19594,0.00050958,14]
[313369787,1707237058122,-546.38,0.00050958,60]
[313369788,1707237058132,-500.0,0.00050958,60]
[313369789,1707237058141,-757.65,0.00050958,60]
[313369790,1707237058150,-500.0,0.00050958,10]
[313369791,1707237058160,-847.43,0.00050958,60]
[313369792,1707237058169,-500.0,0.00050958,60]
[313369793,1707237058178,-151.0,0.00050958,14]
[313369794,1707237058187,-600.0,0.00050958,60]
[313369795,1707237058196,-176.386638,0.00050958,14]
[313369796,1707237058206,-422.172516,0.00050958,14]
[313369797,1707237058217,-422.172516,0.00050958,14]
[313369798,1707237058228,-166.576814,0.00050958,14]
[313369799,1707237058239,-166.576814,0.00050958,14]
[313369800,1707237058248,-500.0,0.00050958,60]
[313369801,1707237058326,-151.0,0.00050958,14]
[313369802,1707237058336,-652.24,0.00050958,60]
[313369803,1707237058345,-588.71,0.00050958,60]
[313369804,1707237058354,-500.0,0.00050958,60]
[313369805,1707237058363,-500.0,0.00050958,60]
[313369806,1707237058373,-500.0,0.00050958,60]
[313369807,1707237058382,-500.0,0.00050958,60]
[313369808,1707237058392,-500.0,0.00050958,60]
[313369809,1707237058401,-500.0,0.00050958,60]
[313369810,1707237058410,-500.0,0.00050958,60]
[313369811,1707237058420,-500.0,0.00050958,60]
[313369812,1707237058429,-500.0,0.00050958,60]
[313369813,1707237058439,-601.07190436,0.00050958,60]
[313369814,1707237058448,-500.0,0.00050958,60]
[313369815,1707237058458,-1000.0,0.00050958,7]
[313369816,1707237058467,-500.0,0.00050958,60]
[313369817,1707237058477,-500.0,0.00050958,60]
[313369818,1707237058487,-500.0,0.00050958,60]
[313369819,1707237058496,-500.0,0.00050958,60]
[313369820,1707237058506,-607.0232801,0.00050958,60]
[313369821,1707237058515,-177.72642759,0.00050958,60]
[313369822,1707237058525,-684.92,0.00050958,7]
[313369823,1707237058534,-500.0,0.00050958,60]
[313369824,1707237058544,-500.0,0.00050958,60]
[313369825,1707237058554,-500.0,0.00050958,60]
[313369826,1707237058563,-212.57094571,0.00050958,60]
[313369827,1707237058573,-500.0,0.00050958,60]
[313369828,1707237058583,-543.34951022,0.00050958,60]
[313369829,1707237058592,-167.84864656,0.00050958,60]
[313369830,1707237058602,-500.0,0.00050958,60]
[313369831,1707237058611,-500.0,0.00050958,60]
[313369832,1707237058621,-500.0,0.00050958,60]
[313369833,1707237058630,-500.0,0.00050958,60]
[313369834,1707237058639,-2236.7,0.00050958,60]
[313369835,1707237058649,-500.0,0.00050958,60]
[313369836,1707237058658,-500.0,0.00050958,60]
[313369837,1707237058667,-500.0,0.00050958,60]
[313369838,1707237058676,-965.48,0.00050958,60]
[313369839,1707237058686,-500.0,0.00050958,60]
[313369840,1707237058695,-500.0,0.00050958,60]
[313369841,1707237058704,-500.0,0.00050958,7]
[313369842,1707237058714,-500.0,0.00050958,60]
[313369843,1707237058724,-500.0,0.00050958,60]
[313369844,1707237058737,-500.0,0.00050958,60]
[313369845,1707237058747,-500.0,0.00050958,60]
[313369846,1707237058756,-3061.75,0.00050958,5]
[313369847,1707237058767,-500.0,0.00050958,7]
[313369848,1707237058776,-500.0,0.00050958,60]
[313369849,1707237058785,-975.61,0.00050958,60]
[313369850,1707237058795,-500.0,0.00050958,60]
[313369851,1707237058806,-500.0,0.00050958,60]
[313369852,1707237058815,-500.0,0.00050958,60]
[313369853,1707237058825,-253.40152158,0.00050958,60]
[313369854,1707237058834,-691.91,0.00050958,60]
[313369855,1707237058843,-183.78136582,0.00050958,60]
[313369856,1707237058853,-500.0,0.00050958,60]
[313369857,1707237058862,-500.0,0.00050958,60]
[313369858,1707237058872,-500.0,0.00050958,60]
[313369859,1707237058881,-500.0,0.00050958,60]
[313369860,1707237058891,-500.0,0.00050958,60]
[313369861,1707237058901,-500.0,0.00050958,60]
[313369862,1707237058911,-643.59,0.00050958,60]
[313369863,1707237058920,-1684.4,0.00050958,60]
[313369864,1707237058930,-500.0,0.00050958,60]
[313369865,1707237058940,-500.0,0.00050958,60]
[313369866,1707237058950,-500.0,0.00050958,60]
[313369867,1707237058962,-500.0,0.00050958,60]
[313369868,1707237058971,-576.31605502,0.00050958,60]
[313369869,1707237058981,-500.0,0.00050958,60]
[313369870,1707237058990,-500.0,0.00050958,60]
[313369871,1707237059000,-500.0,0.00050958,60]
[313369872,1707237059009,-500.0,0.00050958,60]
[313369873,1707237059019,-500.0,0.00050958,60]
[313369874,1707237059028,-500.0,0.00050958,60]
[313369875,1707237059038,-500.0,0.00050958,60]
[313369876,1707237059047,-500.0,0.00050958,60]
[313369877,1707237059056,-500.0,0.00050958,60]
[313369878,1707237059066,-500.0,0.00050958,60]
[313369879,1707237059075,-500.0,0.00050958,60]
[313369880,1707237059085,-500.0,0.00050958,60]
[313369881,1707237059094,-500.0,0.00050958,60]
[313369882,1707237059103,-500.0,0.00050958,60]
[313369883,1707237059113,-500.0,0.00050958,60]
[313369884,1707237059123,-500.0,0.00050958,60]
[313369885,1707237059132,-500.0,0.00050958,60]
[313369886,1707237059141,-500.0,0.00050958,60]
[313369887,1707237059151,-325.77621793,0.00050958,60]
[313369888,1707237059161,-500.0,0.00050958,60]
[313369889,1707237059170,-500.0,0.00050958,60]
[313369890,1707237059179,-500.0,0.00050958,60]
[313369891,1707237059188,-500.0,0.00050958,60]
[313369892,1707237059198,-500.0,0.00050958,60]
[313369893,1707237059207,-500.0,0.00050958,60]
[313369894,1707237059216,-500.0,0.00050958,60]
[313369895,1707237059226,-500.0,0.00050958,60]
[313369896,1707237059236,-1387.81,0.00050958,5]
[313369897,1707237059246,-500.0,0.00050958,60]
[313369898,1707237059255,-500.0,0.00050958,60]
[313369899,1707237059264,-500.0,0.00050958,60]
[313369900,1707237059274,-500.0,0.00050958,60]
[313369901,1707237059283,-500.0,0.00050958,60]
[313369902,1707237059292,-558.81,0.00050958,60]
[313369903,1707237059301,-500.0,0.00050958,60]
[313369904,1707237059310,-500.0,0.00050958,60]
[313369905,1707237059320,-1000.0,0.00050958,7]
[313369906,1707237059330,-530.43,0.00050958,60]
[313369907,1707237059339,-500.0,0.00050958,60]
[313369908,1707237059348,-500.0,0.00050958,2]
[313369909,1707237059357,-500.0,0.00050958,60]
[313369910,1707237059366,-500.0,0.00050958,60]
[313369911,1707237059375,-500.0,0.00050958,60]
[313369912,1707237059384,-742.12,0.00050958,60]
[313369913,1707237059393,-500.0,0.00050958,60]
[313369914,1707237059403,-500.0,0.00050958,60]
[313369915,1707237059412,-500.0,0.00050958,60]
[313369916,1707237059421,-500.0,0.00050958,60]
[313369917,1707237059430,-500.0,0.00050958,60]
[313369918,1707237059440,-456.36116682,0.00050958,60]
[313369919,1707237059450,-1000.0,0.00050958,7]
[313369920,1707237059459,-500.0,0.00050958,60]
[313369921,1707237059469,-500.0,0.00050958,120]
[313369922,1707237059478,-500.0,0.00050958,2]
[313369923,1707237059488,-150.5,0.0005097,120]
[313369924,1707237059498,-400.0,0.0005097,7]
[313369925,1707237059507,-150.5,0.0005098,120]
[313369926,1707237059516,-200.0,0.00050987,73]
[313369927,1707237059592,-200.0,0.00050987,67]
[313369928,1707237059602,-200.0,0.00050987,61]
[313369929,1707237059611,-200.0,0.00050987,55]
[313369930,1707237059621,-150.5,0.0005099,120]
[313369931,1707237059630,-150.0,0.00050999,10]
[313369932,1707237059639,-150.0,0.00050999,10]
[313369933,1707237059648,-500000.0,0.00051,120]
[313369934,1707237059657,-1608.59013256,0.00051,30]
[313369935,1707237059666,-1500.09187687,0.00051,14]
[313369936,1707237059675,-1002.0,0.00051,14]
[313369937,1707237059684,-3814.0,0.00051,30]
[313369938,1707237059694,-199.0,0.00051,30]
[313369939,1707237059703,-300.0,0.00051,52]
[313369940,1707237059713,-500000.0,0.00051,120]
[313369941,1707237059722,-200.0,0.00051,29]
[313369942,1707237059735,-1000.0,0.00051,2]
[313369943,1707237059745,-1000.0,0.00051,3]
[313369944,1707237059755,-728.0,0.00051,60]
[313369945,1707237059764,-300.0,0.00051,29]
[313369946,1707237059774,-166.66666666,0.00051019,60]
[313369947,1707237059783,-2110.0,0.00051054,30]
[313369948,1707237059793,-1133.48789608,0.00051062,120]
[313369949,1707237059803,-151.55628475,0.00051098,60]
[313369950,1707237059812,-151.55628475,0.00051128,60]
[313369951,1707237059823,-248.12327757,0.00051185,60]
[313369952,1707237059834,-3147.02471771,0.000512,120]
[313369953,1707237059843,-150.0,0.00051249,11]
[313369954,1707237059853,-150.0,0.00051249,11]
[313369955,1707237059863,-320651.44655529,0.0005125,120]
[313369956,1707237060012,-679348.55344471,0.0005125,120]
[313369957,1707237060021,-151.0,0.0005125,14]
[313369958,1707237060030,-159.19594,0.0005125,14]
[313369959,1707237060040,-159.19594,0.0005125,14]
[313369960,1707237060049,-151.0,0.0005125,14]
[313369961,1707237060059,-422.172516,0.0005125,14]
[313369962,1707237060068,-422.172516,0.0005125,14]
[313369963,1707237060077,-166.576814,0.0005125,14]
[313369964,1707237060087,-166.576814,0.0005125,14]
[313369965,1707237060097,-3725.0,0.00051283,30]
[313369966,1707237060106,-500.0,0.00051298,14]
[313369967,1707237060115,-1848.17121599,0.000513,2]
[313369968,1707237060125,-872.16,0.00051308,120]
[313369969,1707237060134,-500.0,0.00051369,60]
[313369970,1707237060143,-500.0,0.00051369,60]
[313369971,1707237060152,-744.23,0.00051369,30]
[313369972,1707237060162,-500.0,0.00051369,2]
[313369973,1707237060171,-500.0,0.00051369,7]
[313369974,1707237060180,-500.0,0.00051369,60]
[313369975,1707237060189,-500.0,0.00051369,60]
[313369976,1707237060198,-500.0,0.00051369,60]
[313369977,1707237060207,-500.0,0.00051369,60]
[313369978,1707237060216,-512.4464015,0.00051369,60]
[313369979,1707237060225,-506.13927679,0.00051369,60]
[313369980,1707237060236,-154.69399835,0.00051369,60]
[313369981,1707237060245,-388.7904012,0.00051369,60]
[313369982,1707237060254,-500.0,0.00051369,60]
[313369983,1707237060263,-500.0,0.00051369,2]
[313369984,1707237060272,-334.18786683,0.00051369,60]
[313369985,1707237060281,-500.0,0.00051369,60]
[313369986,1707237060290,-886.51,0.00051369,60]
[313369987,1707237060300,-571.29308914,0.00051369,60]
[313369988,1707237060309,-500.0,0.00051369,60]
[313369989,1707237060319,-500.0,0.00051369,60]
[313369990,1707237060329,-591.25,0.00051369,7]
[313369991,1707237060337,-580.18457606,0.00051369,2]
[313369992,1707237060347,-500.0,0.00051369,60]
[313369993,1707237060356,-500.0,0.00051369,60]
[313369994,1707237060366,-500.0,0.00051369,60]
[313369995,1707237060375,-500.0,0.00051369,60]
[313369996,1707237060384,-500.0,0.00051369,60]
[313369997,1707237060393,-500.0,0.00051369,60]
[313369998,1707237060403,-500.0,0.00051369,60]
[313369999,1707237060412,-1138.31,0.00051369,60]
[313370000,1707237060422,-500.0,0.00051369,60]
[313370001,1707237060431,-500.0,0.00051369,60]
[313370002,1707237060440,-500.0,0.00051369,60]
[313370003,1707237060449,-546.38,0.00051369,60]
[313370004,1707237060459,-500.0,0.00051369,60]
[313370005,1707237060468,-757.65,0.00051369,60]
[313370006,1707237060477,-500.0,0.00051369,10]
[313370007,1707237060487,-847.43,0.00051369,60]
[313370008,1707237060496,-500.0,0.00051369,60]
[313370009,1707237060505,-600.0,0.00051369,60]
[313370010,1707237060514,-500.0,0.00051369,60]
[313370011,1707237060524,-652.24,0.00051369,60]
[313370012,1707237060533,-588.71,0.00051369,60]
[313370013,1707237060542,-500.0,0.00051369,60]
[313370014,1707237060551,-500.0,0.00051369,60]
[313370015,1707237060561,-486.10570888,0.00051369,60]
[313370016,1707237060570,-500.0,0.00051369,60]
[313370017,1707237060579,-500.0,0.00051369,60]
[313370018,1707237060588,-500.0,0.00051369,60]
[313370019,1707237060598,-500.0,0.00051369,60]
[313370020,1707237060678,-500.0,0.00051369,60]
[313370021,1707237060688,-500.0,0.00051369,60]
[313370022,1707237060697,-500.0,0.00051369,60]
[313370023,1707237060707,-1000.0,0.00051369,7]
[313370024,1707237060717,-500.0,0.00051369,60]
[313370025,1707237060729,-500.0,0.00051369,60]
[313370026,1707237060741,-597.4822494,0.00051369,60]
[313370027,1707237060751,-500.0,0.00051369,60]
[313370028,1707237060760,-684.92,0.00051369,7]
[313370029,1707237060771,-500.0,0.00051369,60]
[313370030,1707237060785,-500.0,0.00051369,60]
[313370031,1707237060796,-500.0,0.00051369,60]
[313370032,1707237060808,-500.0,0.00051369,60]
[313370033,1707237060818,-500.0,0.00051369,60]
[313370034,1707237060827,-594.22266092,0.00051369,60]
[313370035,1707237060838,-500.0,0.00051369,60]
[313370036,1707237060847,-500.0,0.00051369,60]
[313370037,1707237060858,-2236.7,0.00051369,60]
[313370038,1707237060867,-500.0,0.00051369,60]
[313370039,1707237060877,-500.0,0.00051369,60]
[313370040,1707237060886,-500.0,0.00051369,60]
[313370041,1707237060896,-965.48,0.00051369,60]
[313370042,1707237060905,-163.03305222,0.00051369,60]
[313370043,1707237060915,-500.0,0.00051369,60]
[313370044,1707237060925,-500.0,0.00051369,7]
[313370045,1707237060934,-500.0,0.00051369,60]
[313370046,1707237060945,-500.0,0.00051369,60]
[313370047,1707237060955,-358.49479374,0.00051369,60]
[313370048,1707237060965,-500.0,0.00051369,60]
[313370049,1707237060974,-3061.75,0.00051369,5]
[313370050,1707237060985,-500.0,0.00051369,7]
[313370051,1707237060995,-500.0,0.00051369,60]
[313370052,1707237061005,-975.61,0.00051369,60]
[313370053,1707237061014,-497.44029653,0.00051369,60]
[313370054,1707237061024,-219.8,0.00051369,60]
[313370055,1707237061033,-157.82833883,0.00051369,60]
[313370056,1707237061042,-691.91,0.00051369,60]
[313370057,1707237061051,-500.0,0.00051369,60]
[313370058,1707237061061,-500.0,0.00051369,60]
[313370059,1707237061070,-500.0,0.00051369,60]
[313370060,1707237061079,-500.0,0.00051369,60]
[313370061,1707237061089,-500.0,0.00051369,60]
[313370062,1707237061098,-500.0,0.00051369,60]
[313370063,1707237061109,-643.59,0.00051369,60]
[313370064,1707237061119,-1684.4,0.00051369,60]
[313370065,1707237061129,-500.0,0.00051369,60]
[313370066,1707237061139,-500.0,0.00051369,60]
[313370067,1707237061149,-500.0,0.00051369,60]
[313370068,1707237061159,-500.0,0.00051369,60]
[313370069,1707237061168,-500.0,0.00051369,60]
[313370070,1707237061178,-500.0,0.00051369,60]
[313370071,1707237061188,-500.0,0.00051369,60]
[313370072,1707237061211,-500.0,0.00051369,60]
[313370073,1707237061228,-500.0,0.00051369,60]
[313370074,1707237061252,-500.0,0.00051369,60]
[313370075,1707237061271,-500.0,0.00051369,60]
[313370076,1707237061288,-638.15491185,0.00051369,60]
[313370077,1707237061306,-500.0,0.00051369,60]
[313370078,1707237061324,-500.0,0.00051369,60]
[313370079,1707237061341,-500.0,0.00051369,60]
[313370080,1707237061360,-500.0,0.00051369,60]
[313370081,1707237061376,-500.0,0.00051369,60]
[313370082,1707237061397,-500.0,0.00051369,60]
[313370083,1707237061417,-500.0,0.00051369,60]
[313370084,1707237061430,-500.0,0.00051369,60]
[313370085,1707237061447,-500.0,0.00051369,60]
[313370086,1707237061463,-231.51677943,0.00051369,60]
[313370087,1707237061476,-500.0,0.00051369,60]
[313370088,1707237061493,-500.0,0.00051369,60]
[313370089,1707237061508,-500.0,0.00051369,60]
[313370090,1707237061521,-500.0,0.00051369,60]
[313370091,1707237061536,-500.0,0.00051369,60]
[313370092,1707237061551,-500.0,0.00051369,60]
[313370093,1707237061566,-500.0,0.00051369,60]
[313370094,1707237061580,-500.0,0.00051369,60]
[313370095,1707237061594,-1387.81,0.00051369,5]
[313370096,1707237061608,-151.43248835,0.00051369,60]
[313370097,1707237061622,-500.0,0.00051369,60]
[313370098,1707237061637,-500.0,0.00051369,60]
[313370099,1707237061651,-500.0,0.00051369,60]
[313370100,1707237061661,-500.0,0.00051369,60]
[313370101,1707237061670,-558.81,0.00051369,60]
[313370102,1707237061680,-500.0,0.00051369,60]
[313370103,1707237061689,-500.0,0.00051369,60]
[313370104,1707237061699,-1000.0,0.00051369,7]
[313370105,1707237061708,-530.43,0.00051369,60]
[313370106,1707237061718,-500.0,0.00051369,60]
[313370107,1707237061732,-500.0,0.00051369,2]
[313370108,1707237061744,-500.0,0.00051369,60]
[313370109,1707237061754,-500.0,0.00051369,60]
[313370110,1707237061763,-500.0,0.00051369,60]
[313370111,1707237061773,-742.12,0.00051369,60]
[313370112,1707237061783,-500.0,0.00051369,60]
[313370113,1707237061792,-500.0,0.00051369,60]
[313370114,1707237061803,-500.0,0.00051369,60]
[313370115,1707237061813,-500.0,0.00051369,60]
[313370116,1707237061823,-260.67659535,0.00051369,60]
[313370117,1707237061833,-1000.0,0.00051369,7]
[313370118,1707237061843,-500.0,0.00051369,60]
[313370119,1707237061853,-500.0,0.00051369,120]
[313370120,1707237061863,-500.0,0.00051369,2]
[313370121,1707237061873,-7785.510437,0.000514,8]
[313370122,1707237061883,-248.12327757,0.00051408,60]
[313370123,1707237061894,-2000.0,0.00051419,60]
[313370124,1707237061904,-248.12327757,0.00051419,60]
[313370125,1707237062087,-2000.0,0.00051442,60]
[313370126,1707237062128,-158.89321353,0.00051444,120]
[313370127,1707237062143,-848.82329,0.0005147,5]
[313370128,1707237062154,-150.0,0.00051499,11]
[313370129,1707237062164,-150.0,0.00051499,11]
[313370130,1707237062174,-268.03,0.000515,60]
[313370131,1707237062183,-467664.9608018,0.000515,120]
[313370132,1707237062269,-208.86329476,0.00050958,60]
[313370133,1707237062279,-32335.0391982,0.000515,120]
[313370134,1707237062289,-200.0,0.000515,29]
[313370135,1707237062298,-666.0,0.000515,60]
[313370136,1707237062307,-151.55628475,0.00051529,60]
[313370137,1707237062316,-174.53243741,0.00051539,30]
[313370138,1707237062326,-2792.8116244,0.00051539,30]
[313370139,1707237062335,-402.81579047,0.00051539,60]
[313370140,1707237062346,-2110.0,0.00051554,30]
[313370141,1707237062355,-151.55628475,0.00051596,60]
[313370142,1707237062365,-248.12327781,0.00051606,60]
[313370143,1707237062375,-306.82,0.00051665,2]
[313370144,1707237062385,-154.45,0.000517,7]
[313370145,1707237062395,-154.45,0.000517,7]
[313370146,1707237062404,-154.45,0.000517,7]
[313370147,1707237062414,-166.6666667,0.00051706,60]
[313370148,1707237062424,-392.89,0.00051711,60]
[313370149,1707237062435,-350.0,0.00051726,30]
[313370150,1707237062444,-350.0,0.00051726,30]
[313370151,1707237062454,-350.0,0.00051726,30]
[313370152,1707237062464,-350.0,0.00051726,30]
[313370153,1707237062473,-350.0,0.00051726,30]
[313370154,1707237062483,-350.0,0.00051726,30]
[313370155,1707237062496,-350.0,0.00051726,30]
[313370156,1707237062506,-350.0,0.00051726,30]
[313370157,1707237062515,-350.0,0.00051726,30]